fUSD/lending_fUSD_20251027
["ID","MTS","AMOUNT","RATE_DAILY","PERIOD"]
[392491398,1761558646531,-500.0,0.00044804,120]
[392491399,1761558646540,-200.0,0.00044804,120]
[392491400,1761558646549,-18227.2054864,0.00044852,3]
[392491401,1761558646560,-14263.3903226,0.00044852,3]
[392491402,1761558646569,-18227.2054864,0.0004487,3]
[392491403,1761558646578,-500.0,0.00044873,10]
[392491404,1761558646587,-151.58346849,0.00044873,10]
[392491405,1761558646596,-500.0,0.00044873,10]
[392491406,1761558646606,-541.88128914,0.00044873,8]
[392491407,1761558646615,-839.78787433,0.00044873,2]
[392491408,1761558646623,-54681.6164591,0.0004488,3]
[392491409,1761558646632,-42790.1709677,0.0004488,3]
[392491410,1761558646642,-404.94228726,0.00044889,17]
[392491411,1761558646651,-162.26600295,0.00044889,20]
[392491412,1761558646660,-85580.3419354,0.0004489,3]
[392491413,1761558646670,-636.0,0.0004489,30]
[392491414,1761558646679,-1000.0,0.00044899,30]
[392491415,1761558646687,-999.0,0.00044899,120]
[392491416,1761558646699,-149312.0933,0.000449,2]
[392491417,1761558646708,-1653.45,0.000449,120]
[392491418,1761558646717,-600.0,0.000449,16]
[392491419,1761558646726,-600.0,0.000449,16]
[392491420,1761558646735,-600.0,0.000449,16]
[392491421,1761558646744,-600.0,0.000449,16]
[392491422,1761558646754,-600.0,0.000449,16]
[392491423,1761558646762,-600.0,0.000449,16]
[392491424,1761558646771,-600.0,0.000449,16]
[392491425,1761558646780,-600.0,0.000449,16]
[392491426,1761558646789,-600.0,0.000449,32]
[392491427,1761558646798,-215.0,0.000449,37]
[392491428,1761558646807,-600.0,0.000449,16]
[392491429,1761558646816,-600.0,0.000449,16]
[392491430,1761558646825,-600.0,0.000449,16]
[392491431,1761558646834,-600.0,0.000449,16]
[392491432,1761558646843,-600.0,0.000449,16]
[392491433,1761558646854,-600.0,0.000449,16]
[392491434,1761558646863,-600.0,0.000449,16]
[392491435,1761558646871,-600.0,0.000449,16]
[392491436,1761558646881,-600.0,0.000449,32]
[392491437,1761558646890,-300.0,0.000449,24]
[392491438,1761558646899,-300.0,0.000449,24]
[392491439,1761558646908,-600.0,0.000449,16]
[392491440,1761558646919,-600.0,0.000449,16]
[392491441,1761558646930,-600.0,0.000449,16]
[392491442,1761558646939,-600.0,0.000449,16]
[392491443,1761558646949,-600.0,0.000449,16]
[392491444,1761558646958,-600.0,0.000449,16]
[392491445,1761558646967,-600.0,0.000449,16]
[392491446,1761558646977,-600.0,0.000449,16]
[392491447,1761558646986,-600.0,0.000449,32]
[392491448,1761558646995,-14263.3903226,0.00044923,3]
[392491449,1761558647005,-162.90586814,0.00044932,30]
[392491450,1761558647014,-14263.3903226,0.00044934,3]
[392491451,1761558647025,-500.0,0.00044943,120]
[392491452,1761558647035,-500.0,0.00044943,120]
[392491453,1761558647044,-500.0,0.00044943,120]
[392491454,1761558647053,-1500.0,0.00044968,10]
[392491455,1761558647062,-500.0,0.0004497,7]
[392491456,1761558647072,-500.0,0.0004497,7]
[392491457,1761558647081,-167.8322669,0.00044973,10]
[392491458,1761558647090,-500.0,0.0004498,120]
[392491459,1761558647099,-500.0,0.0004498,120]
[392491460,1761558647107,-500.0,0.0004498,120]
[392491461,1761558647116,-3246.12,0.00044989,120]
[392491462,1761558647126,-3246.12,0.00044989,120]
[392491463,1761558647135,-1267.95,0.0004499,19]
[392491464,1761558647144,-3246.12,0.00044998,120]
[392491465,1761558647153,-3246.12,0.00044998,120]
[392491466,1761558647163,-3246.12,0.00044998,120]
[392491467,1761558647173,-3246.12,0.00044998,120]
[392491468,1761558647182,-3246.32311024,0.00044998,120]
[392491469,1761558647192,-500.0,0.00044999,120]
[392491470,1761558647201,-171.83209328,0.00044999,120]
[392491471,1761558647211,-500.0,0.00044999,120]
[392491472,1761558647220,-488.5816647,0.00045,2]
[392491473,1761558647229,-354.0,0.00045,120]
[392491474,1761558647239,-1554.0,0.00045,120]
[392491475,1761558647248,-1000.0,0.00045,2]
[392491476,1761558647257,-615.08,0.00045,14]
[392491477,1761558647267,-381.1,0.00045,30]
[392491478,1761558647276,-965967.58800894,0.00045,120]
[392491479,1761558647575,-454.38567981,0.00045,120]
[392491480,1761558647749,-0.06102898,0.00045,120]
[392491481,1761558647760,-2000.27225263,0.00045,120]
[392491482,1761558647857,-1511.49744495,0.00045,120]
[392491483,1761558647870,-495.42136652,0.00045,120]
[392491484,1761558648054,-711.0,0.000411,2]
[392491485,1761558648064,-476.05,0.00044602,30]
[392491486,1761558648075,-1394.24,0.00044602,30]
[392491487,1761558648084,-88.59501907,0.00045,120]
[392491488,1761558648095,-4307.22197395,0.00045,120]
[392491489,1761558648107,-25174.95722515,0.00045,120]
[392491490,1761558648115,-1942.29,0.00045,14]
[392491491,1761558648125,-690.82040483,0.00045028,60]
[392491492,1761558648134,-212.05234605,0.00045028,60]
[392491493,1761558648147,-303.3217301,0.00045028,60]
[392491494,1761558648157,-166.66,0.00045049,2]
[392491495,1761558648168,-166.88242647,0.00045066,15]
[392491496,1761558648178,-193.37703797,0.00045107,4]
[392491497,1761558648187,-153.7181831,0.00045168,120]
[392491498,1761558648199,-1000.0,0.00045205,2]
[392491499,1761558648208,-124905.99178623,0.0004525,120]
[392491500,1761558648227,-2946.36636076,0.0004525,120]
[392491501,1761558648239,-62961.20856588,0.0004525,120]
[392491502,1761558648250,-2487.79861121,0.0004525,120]
[392491503,1761558648262,-682.46409653,0.0004525,120]
[392491504,1761558648273,-4169.15,0.0004525,120]
[392491505,1761558648883,463.62047,0.00037168,60]
[392491506,1761558649757,463.62047,0.00037168,60]
[392491507,1761558650429,463.62047,0.00037168,60]
[392491508,1761558651226,463.62047,0.00037168,60]
[392491509,1761558651955,463.62047,0.00037168,60]
[392491510,1761558732379,66161.65485328,0.00037168,50]
[392491511,1761558787553,1105.988263,7.945e-05,2]
[392491512,1761558968058,300.0,0.00027425,120]
[392491513,1761558968156,300.0,0.00027494,120]
[392491514,1761558976614,195.0,0.00027425,120]
[392491515,1761558976725,195.0,0.00026178,120]
[392491516,1761558976820,195.0,0.00027947,120]
[392491517,1761559028816,300.0,0.00027425,120]
[392491518,1761559028937,300.0,0.00024966,120]
[392491519,1761559029054,300.0,0.00026435,120]
[392491520,1761559029172,300.0,0.00026435,120]
[392491521,1761559029278,300.0,0.00026435,120]
[392491522,1761559030719,2500.0,0.00027425,120]
[392491523,1761559030827,882.38752877,0.00024966,120]
[392491524,1761559033728,195.0,0.00027425,120]
[392491525,1761559033847,195.0,0.00024949,120]
[392491526,1761559033942,195.0,0.00025731,120]
[392491528,1761559085268,195.0,0.00027425,120]
[392491529,1761559085391,195.0,0.00024949,120]
[392491530,1761559085503,195.0,0.00025731,120]
[392491531,1761559089015,300.0,0.00027425,120]
[392491532,1761559089117,300.0,0.00024949,120]
[392491533,1761559089226,300.0,0.00025731,120]
[392491534,1761559089347,300.0,0.00025731,120]
[392491535,1761559089458,300.0,0.00025731,120]
[392491536,1761559143176,226.83919084,0.00027425,120]
[392491537,1761559146664,195.0,0.00027425,120]
[392491538,1761559146757,195.0,0.00024949,120]
[392491539,1761559146947,195.0,0.00025731,120]
[392491540,1761559208043,195.0,0.00027425,120]
[392491541,1761559208153,195.0,0.00024949,120]
[392491542,1761559208271,195.0,0.00025725,120]
[392491546,1761559406672,2177.13016537,0.00037174,120]
[392491547,1761559437486,901.42023687,0.00037174,120]
[392491548,1761559511765,2425.79341557,0.00037174,50]
[392491549,1761559618638,1138.0,0.00031507,120]
[392491550,1761559628130,-411.52389015,0.00024695,60]
[392491551,1761559640150,-843.51628455,0.00024695,60]
[392491552,1761559645823,1377.84,0.00037174,50]
[392491562,1761559746097,-2951.49111109,0.00024695,60]
[392491563,1761559749081,-908.45674396,0.00024695,60]
[392491564,1761559749105,-89.99704804,0.00024695,2]
[392491566,1761559764110,-105.75759356,0.00024695,2]
[392491567,1761559764131,-195.0,0.00024695,2]
[392491568,1761559764151,-117.15248518,0.00024695,2]
[392491569,1761559773100,-77.84751482,0.00024695,2]
[392491570,1761559773124,-195.0,0.00024758,2]
[392491571,1761559773146,-250.0,0.00024794,2]
[392491572,1761559773165,-336.25297938,0.000248,2]
[392491573,1761559773185,-250.0,0.00024847,2]
[392491574,1761559773206,-479.64146642,0.00024932,2]
[392491575,1761559812587,195.0,0.00027425,120]
[392491576,1761559812700,195.0,0.00024932,120]
[392491577,1761559812822,195.0,0.00026376,120]
[392491578,1761559817808,217.66627,0.00037172,60]
[392491587,1761559832293,-20.35853358,0.00024932,2]
[392491588,1761559832306,-150.0,0.00024932,2]
[392491589,1761559832316,-171.48,0.00026,2]
[392491590,1761559832326,-195.0,0.00027165,2]
[392491591,1761559832336,-195.0,0.00027165,2]
[392491592,1761559832346,-300.0,0.00027425,2]
[392491593,1761559832357,-300.0,0.00027425,2]
[392491594,1761559832367,-300.0,0.00027425,2]
[392491595,1761559832377,-300.0,0.00027425,2]
[392491596,1761559832387,-300.0,0.00027425,2]
[392491597,1761559832401,-454.91257726,0.00028851,2]
[392491598,1761559832410,-1200.0,0.00029591,2]
[392491599,1761559832420,-298.69938913,0.00030272,2]
[392491600,1761559832430,-1359.0,0.00031906,3]
[392491601,1761559832439,-303.0,0.00031999,3]
[392491602,1761559832449,-400.0,0.00031999,3]
[392491604,1761559832459,-1600.0,0.00031999,3]
[392491606,1761559832468,-173.59654005,0.00032,120]
[392491608,1761559832477,-246.16868753,0.00032,120]
[392491609,1761559832486,-165.20926346,0.00032,120]
[392491610,1761559832496,-268.80674278,0.00032,120]
[392491611,1761559832506,-244.45496501,0.00032,120]
[392491613,1761559832516,-500.0,0.000333,15]
[392491615,1761559832525,-425.055,0.00034417,38]
[392491617,1761559832534,-183.44408124,0.00034417,38]
[392491619,1761559832543,-560.0,0.00034417,3]
[392491621,1761559832552,-438.18378622,0.00034559,3]
[392491623,1761559832564,-545.81621378,0.00034559,3]
[392491625,1761559832573,-5514.0,0.000361,5]
[392491627,1761559832583,-1600.0,0.00036583,2]
[392491629,1761559832592,-2720.0,0.00036583,2]
[392491632,1761559832605,-1475.0,0.00036583,2]
[392491633,1761559832614,-500.0,0.00036583,2]
[392491636,1761559832623,-500.0,0.00036583,5]
[392491639,1761559832633,-500.0,0.00036583,5]
[392491642,1761559832642,-500.0,0.00036625,5]
[392491645,1761559832652,-498.0,0.00037017,3]
[392491648,1761559832661,-151.0,0.00037045,2]
[392491650,1761559832671,-151.0,0.00037045,2]
[392491652,1761559832679,-151.0,0.00037045,2]
[392491654,1761559832688,-151.0,0.00037045,2]
[392491656,1761559832698,-151.0,0.00037045,2]
[392491658,1761559832706,-151.0,0.00037045,2]
[392491660,1761559832715,-151.0,0.00037045,2]
[392491662,1761559832725,-151.0,0.00037045,2]
[392491664,1761559832734,-151.0,0.00037045,2]
[392491666,1761559832743,-151.0,0.00037045,2]
[392491668,1761559832752,-151.0,0.00037045,2]
[392491670,1761559832760,-151.0,0.00037045,2]
[392491672,1761559832769,-151.0,0.00037045,2]
[392491674,1761559832778,-211.1539143,0.00037045,2]
[392491676,1761559832787,-151.0,0.00037045,2]
[392491678,1761559832798,-151.0,0.00037045,2]
[392491680,1761559832807,-151.0,0.00037045,2]
[392491682,1761559832817,-151.0,0.00037045,2]
[392491683,1761559832826,-151.0,0.00037045,2]
[392491686,1761559832836,-151.0,0.00037045,2]
[392491687,1761559832845,-151.0,0.00037045,2]
[392491689,1761559832855,-151.0,0.00037045,2]
[392491691,1761559832863,-151.0,0.00037045,2]
[392491693,1761559832873,-151.0,0.00037045,2]
[392491695,1761559832882,-151.0,0.00037045,2]
[392491697,1761559832891,-151.0,0.00037045,2]
[392491699,1761559832905,-151.0,0.00037045,2]
[392491701,1761559832914,-151.0,0.00037045,2]
[392491703,1761559832923,-151.0,0.00037045,2]
[392491705,1761559832932,-151.0,0.00037045,2]
[392491707,1761559832943,-151.0,0.00037045,2]
[392491709,1761559832951,-151.0,0.00037045,2]
[392491711,1761559832961,-151.0,0.00037045,2]
[392491713,1761559832970,-151.0,0.00037045,2]
[392491715,1761559832980,-1095.35,0.00037045,14]
[392491717,1761559832990,-1000.0,0.00037071,2]
[392491719,1761559832999,-500.0,0.00037131,5]
[392491721,1761559833007,-1000.0,0.00037131,5]
[392491723,1761559833016,-805.0,0.00037168,50]
[392491725,1761559833026,-274.7,0.00037172,30]
[392491727,1761559833036,-215.0,0.00037172,30]
[392491729,1761559833045,-200.0,0.00037172,30]
[392491731,1761559833054,-167.57113489,0.000372,120]
[392491733,1761559833063,-500.0,0.000372,5]
[392491734,1761559833072,-375.69831699,0.000372,5]
[392491736,1761559833081,-500.0,0.000372,5]
[392491738,1761559833090,-506.30495867,0.000372,5]
[392491740,1761559833099,-500.0,0.000372,5]
[392491742,1761559833109,-500.0,0.000372,5]
[392491744,1761559833118,-500.0,0.000372,5]
[392491746,1761559833127,-689.78,0.00037273,2]
[392491748,1761559833136,-1095.35,0.00037319,14]
[392491750,1761559833145,-1095.35,0.00037593,14]
[392491752,1761559833155,-476.74869043,0.00037599,2]
[392491753,1761559833164,-500.0,0.00037633,28]
[392491755,1761559833173,-424.19365566,0.00037678,15]
[392491805,1761559838136,-254.1545887,0.00037199,7]
[392491806,1761559838146,-183.11846952,0.00037199,15]
[392491818,1761559840959,-155.79510427,0.00037199,15]
[392491819,1761559840969,-500.0,0.00037199,15]
[392491820,1761559840980,-101.27848711,0.00037199,15]
[392491821,1761559840991,-398.72151289,0.00037199,15]
[392491822,1761559841000,-500.0,0.00037199,15]
[392491823,1761559841009,-500.0,0.00037199,15]
[392491824,1761559841019,-454.43481028,0.00037199,15]
[392491825,1761559841028,-500.0,0.00037199,15]
[392491826,1761559841037,-500.0,0.00037199,15]
[392491827,1761559841046,-500.0,0.00037199,15]
[392491828,1761559841055,-500.0,0.00037199,15]
[392491829,1761559841064,-158.95437323,0.00037199,15]
[392491830,1761559841100,-271.668401,0.00037199,15]
[392491831,1761559841111,-69.37722577,0.00037199,15]
[392491832,1761559841120,-329.62985104,0.00037679,5]
[392491833,1761559841129,-100.99292319,0.0003772,2]
[392491834,1761559841143,-93.39707681,0.0003772,2]
[392491835,1761559841152,-1000.0,0.00037748,5]
[392491836,1761559841161,-500.0,0.00037748,5]
[392491837,1761559841170,-575.63777896,0.00037748,5]
[392491838,1761559841179,-500.0,0.00037748,5]
[392491839,1761559841188,-1000.0,0.00037748,5]
[392491840,1761559841197,-1095.35,0.00037867,14]
[392491841,1761559841206,-197.87,0.00037873,2]
[392491842,1761559841215,-578.34,0.00037873,2]
[392491843,1761559841223,-2878.59,0.00037873,2]
[392491844,1761559841233,-999.0,0.00038033,3]
[392491845,1761559841242,-1095.35,0.00038141,14]
[392491846,1761559841252,-299.94,0.00038231,2]
[392491847,1761559841260,-500.0,0.00038296,5]
[392491848,1761559841269,-1496.1743,0.00038317,2]
[392491849,1761559841279,-1095.35,0.00038415,30]
[392491850,1761559841289,-1600.0,0.00038421,120]
[392491851,1761559841298,-689.78,0.0003867,2]
[392491852,1761559841308,-1095.35,0.00038688,30]
[392491853,1761559841318,-166.66,0.0003886,30]
[392491854,1761559841327,-200.0,0.00038904,2]
[392491855,1761559841336,-1095.35,0.00038962,30]
[392491856,1761559841346,-150.72,0.00039106,2]
[392491857,1761559841355,-1095.35,0.00039236,30]
[392491858,1761559841364,-1095.35,0.0003951,30]
[392491859,1761559841374,-500.0,0.00039634,7]
[392491860,1761559841383,-500.0,0.00039634,7]
[392491861,1761559841392,-500.0,0.00039634,7]
[392491862,1761559841403,-1371.07869264,0.000397,2]
[392491863,1761559841412,-167.8322669,0.00039729,5]
[392491864,1761559841421,-3490.0,0.00039739,2]
[392491865,1761559841432,-6624.0,0.00039739,2]
[392491866,1761559841440,-558.0,0.00039739,2]
[392491867,1761559841450,-4824.871,0.00039739,2]
[392491868,1761559841460,-1095.35,0.00039784,30]
[392491869,1761559841469,-194.39,0.00039816,2]
[392491870,1761559841479,-730.91,0.00040013,2]
[392491871,1761559841488,-500.0,0.00040045,7]
[392491872,1761559841497,-500.0,0.00040045,7]
[392491873,1761559841506,-455.44271779,0.00040045,7]
[392491874,1761559841515,-1095.43764132,0.00040058,30]
[392491875,1761559841525,-689.78,0.00040068,2]
[392491876,1761559841534,-724.3,0.00040123,120]
[392491877,1761559841543,-503.0,0.00040172,120]
[392491878,1761559841552,-168.0,0.00040231,2]
[392491879,1761559841561,-168.0,0.00040275,2]
[392491880,1761559841571,-205.66,0.00040404,30]
[392491881,1761559841580,-218.30150414,0.00040456,7]
[392491882,1761559841590,-500.0,0.00040456,7]
[392491883,1761559841599,-500.0,0.00040456,7]
[392491884,1761559841608,-151.06656829,0.00040488,4]
[392491885,1761559841617,-150.0,0.00040488,4]
[392491886,1761559841626,-150.0,0.00040488,4]
[392491887,1761559841635,-150.0,0.00040488,4]
[392491888,1761559841644,-150.0,0.00040488,4]
[392491889,1761559841655,-150.0,0.00040488,4]
[392491890,1761559841667,-150.0,0.00040488,4]
[392491891,1761559841676,-195.62074116,0.00040488,4]
[392491892,1761559841685,-197.84576896,0.00040488,4]
[392491893,1761559841694,-150.0,0.00040488,4]
[392491894,1761559841703,-150.0,0.00040488,4]
[392491895,1761559841712,-150.00000001,0.00040488,4]
[392491896,1761559841721,-168.0,0.00040521,2]
[392491897,1761559841731,-164.86345473,0.0004065,30]
[392491898,1761559841740,-744.35058593,0.00040684,120]
[392491899,1761559841749,-168.0,0.00040784,2]
[392491900,1761559841759,-1097.54319889,0.00040859,30]
[392491901,1761559841767,-168.0,0.00040864,2]
[392491902,1761559841777,-500.0,0.00040867,7]
[392491903,1761559841786,-500.0,0.00040867,7]
[392491904,1761559841796,-500.0,0.00040867,7]
[392491905,1761559841807,-174.0,0.00041,90]
[392491906,1761559841816,-513.22200868,0.000411,2]
[392491907,1761559841826,-500.0,0.00041278,7]
[392491908,1761559841834,-500.0,0.00041278,7]
[392491909,1761559841843,-500.0,0.00041278,7]
[392491910,1761559841853,-168.0,0.00041391,2]
[392491911,1761559841861,-689.78,0.00041466,2]
[392491912,1761559841871,-150.0,0.00041629,2]
[392491913,1761559841880,-150.0,0.00041629,2]
[392491914,1761559841891,-153.069,0.00041629,2]
[392491915,1761559841905,-150.0,0.00041629,2]
[392491916,1761559841915,-150.0,0.00041629,2]
[392491917,1761559841924,-627.755,0.00041629,2]
[392491918,1761559841933,-820.0,0.00041629,2]
[392491919,1761559841943,-573.0,0.00041629,2]
[392491920,1761559841953,-2055.0,0.00041629,2]
[392491921,1761559841962,-613.211,0.00041629,2]
[392491922,1761559841973,-1313.0,0.00041629,2]
[392491923,1761559841983,-1601.92,0.00041629,2]
[392491924,1761559841992,-1270.0,0.00041629,2]
[392491925,1761559842001,-825.0,0.00041629,2]
[392491926,1761559842012,-500.0,0.00041689,7]
[392491927,1761559842021,-500.0,0.00041689,7]
[392491928,1761559842031,-168.0,0.00041734,2]
[392491929,1761559842041,-168.0,0.0004183,2]
[392491930,1761559842050,-701.88492659,0.000419,2]
[392491931,1761559842058,-500.0,0.000419,10]
[392491932,1761559842068,-500.0,0.000419,10]
[392491933,1761559842077,-500.0,0.000419,10]
[392491934,1761559842086,-194.39,0.00041911,2]
[392491935,1761559842096,-3292.0,0.00042,2]
[392491936,1761559842105,-2138.5755,0.00042214,2]
[392491937,1761559842114,-10961.0,0.00042314,117]
[392491938,1761559842123,-168.0,0.00042406,2]
[392491939,1761559842132,-239.96048342,0.00042448,10]
[392491940,1761559842141,-1000.0,0.00042448,10]
[392491941,1761559842150,-153.0,0.00042461,90]
[392491942,1761559842160,-153.0,0.00042461,90]
[392491943,1761559842169,-153.0,0.00042461,90]
[392491944,1761559842178,-153.0,0.00042461,90]
[392491945,1761559842187,-1029.8585,0.00042547,30]
[392491946,1761559842196,-172.4872023,0.00042548,60]
[392491947,1761559842205,-150.0,0.00042548,60]
[392491948,1761559842215,-152.29596985,0.00042548,60]
[392491949,1761559842224,-150.0,0.00042548,60]
[392491950,1761559842233,-150.92843313,0.00042548,60]
[392491951,1761559842242,-150.0,0.00042548,60]
[392491952,1761559842252,-150.0,0.00042548,60]
[392491953,1761559842261,-153.78945794,0.00042548,60]
[392491954,1761559842271,-150.0,0.00042548,120]
[392491955,1761559842289,-500.0,0.00042548,60]
[392491956,1761559842300,-500.0,0.00042548,60]
[392491957,1761559842310,-150.0,0.00042548,60]
[392491958,1761559842319,-150.0,0.00042548,60]
[392491959,1761559842328,-500.0,0.00042548,60]
[392491960,1761559842338,-150.0,0.00042548,60]
[392491961,1761559842347,-150.0,0.00042548,60]
[392491962,1761559842356,-150.0,0.00042548,60]
[392491963,1761559842365,-150.0,0.00042548,60]
[392491964,1761559842375,-500.0,0.00042548,60]
[392491965,1761559842384,-150.0,0.00042548,60]
[392491966,1761559842393,-150.86757224,0.00042548,60]
[392491967,1761559842402,-500.0,0.00042548,120]
[392491968,1761559842411,-150.0,0.00042548,60]
[392491969,1761559842420,-500.0,0.00042548,60]
[392491970,1761559842429,-150.0,0.00042548,38]
[392491971,1761559842438,-150.0,0.00042548,60]
[392491972,1761559842447,-150.0,0.00042548,2]
[392491973,1761559842456,-150.0,0.00042548,60]
[392491974,1761559842465,-150.0,0.00042548,60]
[392491975,1761559842475,-150.0,0.00042548,2]
[392491976,1761559842484,-150.0,0.00042548,60]
[392491977,1761559842494,-150.0,0.00042548,2]
[392491978,1761559842503,-500.0,0.00042548,60]
[392491979,1761559842512,-500.0,0.00042548,60]
[392491980,1761559842522,-150.0,0.00042575,60]
[392491981,1761559842531,-150.0,0.00042575,60]
[392491982,1761559842540,-150.0,0.00042575,120]
[392491983,1761559842550,-500.0,0.00042575,60]
[392491984,1761559842559,-500.0,0.00042575,60]
[392491985,1761559842569,-500.0,0.00042575,60]
[392491986,1761559842578,-150.0,0.00042575,60]
[392491987,1761559842587,-500.0,0.00042575,60]
[392491988,1761559842596,-500.0,0.00042575,120]
[392491989,1761559842606,-278.48113883,0.00042575,60]
[392491990,1761559842615,-500.0,0.00042575,60]
[392491991,1761559842624,-150.0,0.00042575,60]
[392491992,1761559842634,-150.0,0.00042575,60]
[392491993,1761559842643,-150.0,0.00042575,60]
[392491994,1761559842653,-500.0,0.00042575,60]
[392491995,1761559842662,-500.0,0.00042575,60]
[392491996,1761559842672,-200.0,0.00042603,60]
[392491997,1761559842682,-222.6348245,0.00042603,120]
[392491998,1761559842691,-334.0,0.00042603,60]
[392491999,1761559842701,-500.0,0.00042603,60]
[392492000,1761559842710,-500.0,0.00042603,60]
[392492001,1761559842720,-200.0,0.00042603,60]
[392492002,1761559842730,-155.58985838,0.00042603,60]
[392492003,1761559842739,-500.0,0.00042603,120]
[392492004,1761559842747,-150.0,0.00042603,60]
[392492005,1761559842756,-204.54951847,0.00042603,60]
[392492006,1761559842765,-150.0,0.00042603,60]
[392492007,1761559842774,-500.0,0.00042603,60]
[392492008,1761559842783,-500.0,0.00042603,60]
[392492009,1761559842793,-500.0,0.0004263,60]
[392492010,1761559842802,-500.0,0.0004263,120]
[392492011,1761559842811,-235.00324724,0.0004263,60]
[392492012,1761559842819,-422.80031557,0.0004263,60]
[392492013,1761559842828,-500.0,0.0004263,60]
[392492014,1761559842837,-500.0,0.00042658,60]
[392492016,1761559842846,-500.0,0.00042658,120]
[392492017,1761559842855,-500.0,0.00042658,60]
[392492018,1761559842864,-500.0,0.00042685,60]
[392492019,1761559842874,-500.0,0.00042685,120]
[392492020,1761559842883,-500.0,0.00042685,60]
[392492021,1761559842895,-1083.0,0.00042702,7]
[392492022,1761559842906,-500.0,0.00042702,120]
[392492024,1761559842915,-500.0,0.00042712,60]
[392492026,1761559842923,-500.0,0.00042712,120]
[392492028,1761559842932,-500.0,0.00042712,60]
[392492030,1761559842943,-3490.0,0.00042739,2]
[392492032,1761559842952,-6624.0,0.00042739,2]
[392492033,1761559842961,-558.0,0.00042739,2]
[392492034,1761559842974,-500.0,0.0004274,60]
[392492035,1761559842984,-500.0,0.0004274,120]
[392492036,1761559842993,-500.0,0.0004274,60]
[392492037,1761559843002,-500.0,0.00042767,60]
[392492038,1761559843011,-500.0,0.00042767,120]
[392492039,1761559843020,-500.0,0.00042767,60]
[392492040,1761559843029,-362.15057743,0.00042795,60]
[392492041,1761559843039,-500.0,0.00042795,120]
[392492042,1761559843048,-183.40327822,0.00042795,60]
[392492043,1761559843056,-500.0,0.00042822,120]
[392492044,1761559843066,-196.33796476,0.00042849,120]
[392492047,1761559843074,-689.78,0.00042863,2]
[392492048,1761559843083,-1692.19592722,0.000429,15]
[392492049,1761559843093,-1500.0,0.00042996,10]
[392492050,1761559843102,-1000.0,0.00043,30]
[392492051,1761559843110,-709.1511272,0.00043,120]
[392492052,1761559843121,-203.7,0.00043014,120]
[392492054,1761559843129,-744.35058593,0.00043125,120]
[392492055,1761559843138,-153.71818319,0.0004313,120]
[392492057,1761559843147,-168.0,0.00043135,2]
[392492058,1761559843159,-1692.19592713,0.0004315,15]
[392492059,1761559843168,-1600.0,0.00043223,120]
[392492060,1761559843178,-168.0,0.0004323,2]
[392492061,1761559843187,-504.699297,0.00043302,120]
[392492062,1761559843196,-2000.0,0.00043302,120]
[392492063,1761559843205,-200.0,0.00043302,120]
[392492064,1761559843216,-153.7181831,0.00043327,120]
[392492065,1761559843225,-168.0,0.00043372,2]